[Event "*** Titled Tuesday Blitz"]
[Site "Chess.com"]
[Date "2020.05.26"]
[Round "9"]
[White "binbin239"]
[Black "anon569"]
[Result "1-0"]
[WhiteElo "2400"]
[BlackElo "2276"]
[TimeControl "180+1"]
[EndTime "11:52:44 PDT"]
[Termination "binbin239 won on time"]

1. d4 {[%clk 0:03:00.6]} 1... Nf6 {[%clk 0:02:59]} 2. c4 {[%clk 0:03:00]} 2...
e6 {[%clk 0:02:59]} 3. Nf3 {[%clk 0:03:00.8]} 3... Bb4+ {[%clk 0:02:59.1]} 4.
Bd2 {[%clk 0:03:00.5]} 4... c5 {[%clk 0:02:59.5]} 5. g3 {[%clk 0:03:00.7]} 5...
Nc6 {[%clk 0:02:58.5]} 6. dxc5 {[%clk 0:02:57.6]} 6... Bxc5 {[%clk 0:02:55.8]}
7. Bg2 {[%clk 0:02:57.8]} 7... Qb6 {[%clk 0:02:49.7]} 8. O-O {[%clk 0:02:55.8]}
8... Qxb2 {[%clk 0:02:47.5]} 9. Nc3 {[%clk 0:02:55]} 9... Bb6 {[%clk 0:02:17.7]}
10. Nb5 {[%clk 0:02:49.9]} 10... Ne4 {[%clk 0:02:15.6]} 11. a4 {[%clk
0:01:44.1]} 11... a6 {[%clk 0:02:04.6]} 12. Rb1 {[%clk 0:01:41.5]} 12... Qf6
{[%clk 0:02:00.9]} 13. Na3 {[%clk 0:01:23]} 13... Bc5 {[%clk 0:01:56.6]} 14. Nc2
{[%clk 0:01:18.8]} 14... Nc3 {[%clk 0:01:54.1]} 15. Bxc3 {[%clk 0:01:18.5]}
15... Qxc3 {[%clk 0:01:55]} 16. Nce1 {[%clk 0:01:02.8]} 16... O-O {[%clk
0:01:44.6]} 17. Nd3 {[%clk 0:01:01.7]} 17... Be7 {[%clk 0:01:42.6]} 18. c5
{[%clk 0:01:00.1]} 18... d6 {[%clk 0:01:31.8]} 19. cxd6 {[%clk 0:00:53.9]} 19...
Bxd6 {[%clk 0:01:32.7]} 20. Nd2 {[%clk 0:00:54.3]} 20... Be7 {[%clk 0:01:10.7]}
21. Ne4 {[%clk 0:00:54]} 21... Qa5 {[%clk 0:01:10.9]} 22. Qc2 {[%clk 0:00:48.1]}
22... Rd8 {[%clk 0:01:02.8]} 23. Rfd1 {[%clk 0:00:47.6]} 23... Nd4 {[%clk
0:00:59.4]} 24. Qb2 {[%clk 0:00:47.6]} 24... e5 {[%clk 0:00:54.5]} 25. e3 {[%clk
0:00:42.7]} 25... Nc6 {[%clk 0:00:49.3]} 26. Qc2 {[%clk 0:00:39.4]} 26... Bf5
{[%clk 0:00:40.5]} 27. Rxb7 {[%clk 0:00:38.9]} 27... Rac8 {[%clk 0:00:40.7]} 28.
Qb2 {[%clk 0:00:36.1]} 28... Rxd3 {[%clk 0:00:20.8]} 29. Rxd3 {[%clk 0:00:35.4]}
29... Qe1+ {[%clk 0:00:21]} 30. Bf1 {[%clk 0:00:35]} 30... Bxe4 {[%clk
0:00:21.3]} 31. Rc3 {[%clk 0:00:32.3]} 31... Re8 {[%clk 0:00:17.7]} 32. Rc1
{[%clk 0:00:31.7]} 32... Qa5 {[%clk 0:00:16.8]} 33. Rc4 {[%clk 0:00:28.1]} 33...
Nd4 {[%clk 0:00:16.6]} 34. exd4 {[%clk 0:00:24.4]} 34... Bxb7 {[%clk 0:00:14.6]}
35. Qxb7 {[%clk 0:00:24.3]} 35... exd4 {[%clk 0:00:14.4]} 36. Rxd4 {[%clk
0:00:24.3]} 36... Bc5 {[%clk 0:00:14.6]} 37. Rf4 {[%clk 0:00:20.7]} 37... Rf8
{[%clk 0:00:14.6]} 38. Bc4 {[%clk 0:00:20.6]} 38... Qe1+ {[%clk 0:00:12.6]} 39.
Kg2 {[%clk 0:00:21.2]} 39... Qe7 {[%clk 0:00:05.3]} 40. Qxa6 {[%clk 0:00:18.3]}
40... Bd6 {[%clk 0:00:02.1]} 41. Rf3 {[%clk 0:00:18]} 41... Bc5 {[%clk
0:00:02.6]} 42. Qc6 {[%clk 0:00:17.7]} 42... Kh8 {[%clk 0:00:03]} 43. a5 {[%clk
0:00:18]} 43... Bd6 {[%clk 0:00:03.6]} 44. a6 {[%clk 0:00:18.3]} 44... f5 {[%clk
0:00:04.1]} 45. a7 {[%clk 0:00:18.4]} 1-0

[Event "*** Titled Tuesday Blitz"]
[Site "Chess.com"]
[Date "2020.05.26"]
[Round "9"]
[White "BJthechessgod"]
[Black "The_Machine04"]
[Result "0-1"]
[WhiteElo "2116"]
[BlackElo "2290"]
[TimeControl "180+1"]
[EndTime "11:52:44 PDT"]
[Termination "The_Machine04 won on time"]

1. e4 {[%clk 0:03:00.9]} 1... d6 {[%clk 0:03:00.9]} 2. d4 {[%clk 0:03:00.5]}
2... Nf6 {[%clk 0:03:00.5]} 3. Nc3 {[%clk 0:03:01]} 3... e5 {[%clk 0:02:59.6]}
4. Nf3 {[%clk 0:02:56.1]} 4... Nbd7 {[%clk 0:02:57.8]} 5. Bc4 {[%clk 0:02:54]}
5... Be7 {[%clk 0:02:57.6]} 6. O-O {[%clk 0:02:53.8]} 6... c6 {[%clk 0:02:57.5]}
7. Be3 {[%clk 0:02:43.2]} 7... Qc7 {[%clk 0:02:47.4]} 8. Bb3 {[%clk 0:02:42.1]}
8... h6 {[%clk 0:02:46]} 9. Qd2 {[%clk 0:02:41.3]} 9... Nf8 {[%clk 0:02:43.4]}
10. Rad1 {[%clk 0:02:23]} 10... Bg4 {[%clk 0:02:41.5]} 11. Qe2 {[%clk
0:02:14.8]} 11... g5 {[%clk 0:02:38.2]} 12. h3 {[%clk 0:02:14.1]} 12... Bc8
{[%clk 0:02:30.8]} 13. dxe5 {[%clk 0:02:04.4]} 13... dxe5 {[%clk 0:02:29.6]} 14.
Nd2 {[%clk 0:01:57.2]} 14... Ng6 {[%clk 0:02:28.1]} 15. Nc4 {[%clk 0:01:46.3]}
15... Nf4 {[%clk 0:02:15.3]} 16. Bxf4 {[%clk 0:01:40.8]} 16... gxf4 {[%clk
0:02:16.2]} 17. Rd3 {[%clk 0:01:33.3]} 17... b5 {[%clk 0:02:07.5]} 18. Nd2
{[%clk 0:01:32.1]} 18... a5 {[%clk 0:02:03.2]} 19. a4 {[%clk 0:01:13.6]} 19...
b4 {[%clk 0:02:01.4]} 20. Na2 {[%clk 0:01:13.4]} 20... Nd7 {[%clk 0:01:54.3]}
21. Qh5 {[%clk 0:01:05.3]} 21... Rh7 {[%clk 0:01:37]} 22. Nc4 {[%clk 0:00:57.8]}
22... Nc5 {[%clk 0:01:32.9]} 23. Rf3 {[%clk 0:00:57.2]} 23... Ba6 {[%clk
0:01:13.5]} 24. Nxe5 {[%clk 0:00:42.6]} 24... Nxb3 {[%clk 0:01:07.2]} 25. cxb3
{[%clk 0:00:20.2]} 25... Bxf1 {[%clk 0:01:00.8]} 26. Kxf1 {[%clk 0:00:21.1]}
26... O-O-O {[%clk 0:00:52.1]} 27. Qf5+ {[%clk 0:00:15.4]} 27... Kb7 {[%clk
0:00:46.4]} 28. Rd3 {[%clk 0:00:12.1]} 28... Rxd3 {[%clk 0:00:39.2]} 29. Nxd3
{[%clk 0:00:13]} 29... Rg7 {[%clk 0:00:38.6]} 30. Qxf4 {[%clk 0:00:13.4]} 30...
Qxf4 {[%clk 0:00:32.7]} 31. Nxf4 {[%clk 0:00:14.3]} 31... Bf6 {[%clk 0:00:33]}
32. Nd3 {[%clk 0:00:12.8]} 32... Bd4 {[%clk 0:00:31]} 33. Nac1 {[%clk
0:00:12.1]} 33... f6 {[%clk 0:00:29.7]} 34. Ne2 {[%clk 0:00:12.5]} 34... Rd7
{[%clk 0:00:28.2]} 35. Nxd4 {[%clk 0:00:12.7]} 35... Rxd4 {[%clk 0:00:29.1]} 36.
Ke2 {[%clk 0:00:12.9]} 36... Rxe4+ {[%clk 0:00:27.9]} 37. Kd2 {[%clk 0:00:12.6]}
37... Kb6 {[%clk 0:00:27]} 38. f3 {[%clk 0:00:11.2]} 38... Re6 {[%clk
0:00:23.9]} 39. Nf4 {[%clk 0:00:10.9]} 39... Rd6+ {[%clk 0:00:23.3]} 40. Ke2
{[%clk 0:00:09.1]} 40... Kc5 {[%clk 0:00:21.9]} 41. g4 {[%clk 0:00:06.6]} 41...
Kd4 {[%clk 0:00:20]} 42. h4 {[%clk 0:00:06.2]} 42... Ke5 {[%clk 0:00:18]} 43.
Ng6+ {[%clk 0:00:05]} 43... Kd4 {[%clk 0:00:16]} 44. Nf4 {[%clk 0:00:05.4]}
44... c5 {[%clk 0:00:15.8]} 45. h5 {[%clk 0:00:02.8]} 45... c4 {[%clk
0:00:13.7]} 46. bxc4 {[%clk 0:00:03.7]} 46... Kxc4 {[%clk 0:00:13.9]} 47. Nd3
{[%clk 0:00:03.9]} 47... Rxd3 {[%clk 0:00:13.1]} 48. f4 {[%clk 0:00:03.7]} 48...
Rb3 {[%clk 0:00:12.9]} 49. g5 {[%clk 0:00:03.8]} 49... fxg5 {[%clk 0:00:12.7]}
50. fxg5 {[%clk 0:00:04.7]} 50... Rxb2+ {[%clk 0:00:13.2]} 51. Ke3 {[%clk
0:00:04.5]} 51... hxg5 {[%clk 0:00:13.7]} 52. h6 {[%clk 0:00:05]} 52... Rh2
{[%clk 0:00:14.2]} 53. h7 {[%clk 0:00:05.6]} 53... Rxh7 {[%clk 0:00:15.1]} 0-1

[Event "*** Titled Tuesday Blitz"]
[Site "Chess.com"]
[Date "2020.05.26"]
[Round "9"]
[White "Ranindu2003"]
[Black "ErikRonka"]
[Result "0-1"]
[WhiteElo "2498"]
[BlackElo "2388"]
[TimeControl "180+1"]
[EndTime "11:52:45 PDT"]
[Termination "ErikRonka won by resignation"]

1. e4 {[%clk 0:02:58.9]} 1... d5 {[%clk 0:02:43.9]} 2. exd5 {[%clk 0:02:58.4]}
2... Nf6 {[%clk 0:02:44.1]} 3. d4 {[%clk 0:02:57.6]} 3... Bg4 {[%clk 0:02:44.3]}
4. Bb5+ {[%clk 0:02:55.4]} 4... c6 {[%clk 0:02:41.5]} 5. dxc6 {[%clk 0:02:51.8]}
5... Nxc6 {[%clk 0:02:40.9]} 6. f3 {[%clk 0:02:21.7]} 6... Qa5+ {[%clk
0:02:39.3]} 7. Nc3 {[%clk 0:02:19.3]} 7... Bf5 {[%clk 0:02:08.7]} 8. Ne2 {[%clk
0:02:12.1]} 8... O-O-O {[%clk 0:02:07.9]} 9. Bxc6 {[%clk 0:02:10.7]} 9... bxc6
{[%clk 0:02:08.8]} 10. Bd2 {[%clk 0:02:06.6]} 10... e5 {[%clk 0:01:58.8]} 11.
Ne4 {[%clk 0:01:36.6]} 11... Qc7 {[%clk 0:01:56.7]} 12. N4g3 {[%clk 0:01:30.8]}
12... Be6 {[%clk 0:01:46.2]} 13. c3 {[%clk 0:01:30.2]} 13... h5 {[%clk
0:01:39.6]} 14. Qa4 {[%clk 0:01:24.2]} 14... h4 {[%clk 0:01:37.2]} 15. Ne4
{[%clk 0:01:13.8]} 15... Nxe4 {[%clk 0:01:03.2]} 16. fxe4 {[%clk 0:01:14.7]}
16... Bd6 {[%clk 0:01:02.6]} 17. Be3 {[%clk 0:01:08.3]} 17... Bg4 {[%clk
0:00:55.4]} 18. d5 {[%clk 0:00:37.7]} 18... c5 {[%clk 0:00:27.5]} 19. h3 {[%clk
0:00:28.4]} 19... Bh5 {[%clk 0:00:25.1]} 20. c4 {[%clk 0:00:25.2]} 20... f5
{[%clk 0:00:25.1]} 21. exf5 {[%clk 0:00:22.1]} 21... Rhf8 {[%clk 0:00:23.5]} 22.
Nc3 {[%clk 0:00:20.7]} 22... e4 {[%clk 0:00:21.8]} 23. Nb5 {[%clk 0:00:19.6]}
23... Bg3+ {[%clk 0:00:21.9]} 24. Kd2 {[%clk 0:00:19.8]} 24... Qe5 {[%clk
0:00:06.1]} 25. Nxa7+ {[%clk 0:00:19.4]} 25... Kb7 {[%clk 0:00:05.9]} 26. Rab1
{[%clk 0:00:11.1]} 26... Rxf5 {[%clk 0:00:05.1]} 27. Nc6 {[%clk 0:00:09.7]}
27... Rxd5+ {[%clk 0:00:03.6]} 28. cxd5 {[%clk 0:00:07.5]} 28... Qxd5+ {[%clk
0:00:04.5]} 29. Nd4 {[%clk 0:00:08.2]} 29... cxd4 {[%clk 0:00:04.2]} 30. Qxd4
{[%clk 0:00:08.7]} 30... Qxd4+ {[%clk 0:00:02.5]} 31. Bxd4 {[%clk 0:00:09.5]}
31... Bf4+ {[%clk 0:00:03.3]} 32. Be3 {[%clk 0:00:09.6]} 32... Rd5+ {[%clk
0:00:03.9]} 33. Kc3 {[%clk 0:00:09.8]} 33... Bxe3 {[%clk 0:00:04.4]} 34. Kc4
{[%clk 0:00:10.2]} 34... Rd4+ {[%clk 0:00:04.3]} 35. Kc3 {[%clk 0:00:10.2]}
35... Rd7 {[%clk 0:00:04.6]} 36. Rhf1 {[%clk 0:00:09.9]} 36... Bd2+ {[%clk
0:00:04.9]} 37. Kb3 {[%clk 0:00:10]} 37... e3 {[%clk 0:00:05.8]} 38. Rf5 {[%clk
0:00:09.9]} 38... Bg6 {[%clk 0:00:05.3]} 39. Rg5 {[%clk 0:00:10.1]} 39... Bxb1
{[%clk 0:00:05]} 40. Rb5+ {[%clk 0:00:10.1]} 40... Kc6 {[%clk 0:00:04.8]} 41.
Rg5 {[%clk 0:00:09.7]} 41... e2 {[%clk 0:00:04.8]} 42. Re5 {[%clk 0:00:10.2]}
42... e1=Q {[%clk 0:00:04.4]} 0-1

[Event "*** Titled Tuesday Blitz"]
[Site "Chess.com"]
[Date "2020.05.26"]
[Round "9"]
[White "TudorAnton"]
[Black "CyberdelChess"]
[Result "1-0"]
[WhiteElo "2444"]
[BlackElo "2273"]
[TimeControl "180+1"]
[EndTime "11:52:46 PDT"]
[Termination "TudorAnton won by checkmate"]

1. d4 {[%clk 0:03:00.9]} 1... d5 {[%clk 0:02:59.2]} 2. c4 {[%clk 0:02:59.2]}
2... c6 {[%clk 0:02:59.4]} 3. Nf3 {[%clk 0:02:57.9]} 3... Nf6 {[%clk 0:02:59.4]}
4. Qc2 {[%clk 0:02:55.9]} 4... g6 {[%clk 0:02:58.5]} 5. g3 {[%clk 0:02:55.3]}
5... Bg7 {[%clk 0:02:58.4]} 6. Bg2 {[%clk 0:02:55.4]} 6... O-O {[%clk
0:02:58.4]} 7. O-O {[%clk 0:02:55.4]} 7... Bf5 {[%clk 0:02:57.3]} 8. Qb3 {[%clk
0:02:55.8]} 8... Qb6 {[%clk 0:02:57.6]} 9. Nc3 {[%clk 0:02:55]} 9... dxc4 {[%clk
0:02:52]} 10. Qxc4 {[%clk 0:02:55.9]} 10... Nbd7 {[%clk 0:02:44.9]} 11. Nh4
{[%clk 0:02:51.6]} 11... Be6 {[%clk 0:02:43]} 12. Qd3 {[%clk 0:02:49.2]} 12...
Rad8 {[%clk 0:02:42.9]} 13. e3 {[%clk 0:02:33.4]} 13... Ne5 {[%clk 0:02:36.8]}
14. Qc2 {[%clk 0:02:32.8]} 14... Nc4 {[%clk 0:02:30.8]} 15. b3 {[%clk
0:02:29.7]} 15... Nd6 {[%clk 0:02:28.8]} 16. Bb2 {[%clk 0:02:15.3]} 16... Nf5
{[%clk 0:02:19.8]} 17. Nxf5 {[%clk 0:02:14.9]} 17... Bxf5 {[%clk 0:02:20.7]} 18.
e4 {[%clk 0:02:15.1]} 18... Bc8 {[%clk 0:02:17.2]} 19. Rad1 {[%clk 0:02:14.9]}
19... h5 {[%clk 0:02:06.7]} 20. Na4 {[%clk 0:02:02.7]} 20... Qa5 {[%clk
0:02:01.9]} 21. Bc3 {[%clk 0:01:59.9]} 21... Qc7 {[%clk 0:02:00.9]} 22. Rfe1
{[%clk 0:01:56.5]} 22... h4 {[%clk 0:02:00.2]} 23. Bb2 {[%clk 0:01:47.6]} 23...
hxg3 {[%clk 0:01:58]} 24. hxg3 {[%clk 0:01:47.2]} 24... Qa5 {[%clk 0:01:58.5]}
25. Ba3 {[%clk 0:01:40]} 25... Rfe8 {[%clk 0:01:57.6]} 26. Bc1 {[%clk 0:01:37]}
26... Qh5 {[%clk 0:01:55.6]} 27. f3 {[%clk 0:01:33.8]} 27... Bh3 {[%clk
0:01:49]} 28. Be3 {[%clk 0:01:32.3]} 28... Bc8 {[%clk 0:01:40.3]} 29. Nc5 {[%clk
0:01:31]} 29... Nd7 {[%clk 0:01:38.3]} 30. Nd3 {[%clk 0:01:30.6]} 30... e5
{[%clk 0:01:36.3]} 31. dxe5 {[%clk 0:01:28.8]} 31... Nxe5 {[%clk 0:01:36.1]} 32.
Nxe5 {[%clk 0:01:29]} 32... Bxe5 {[%clk 0:01:30.9]} 33. f4 {[%clk 0:01:28.8]}
33... Bb8 {[%clk 0:01:08.8]} 34. e5 {[%clk 0:01:19.1]} 34... Bf5 {[%clk
0:01:03.9]} 35. Rxd8 {[%clk 0:01:02.9]} 35... Rxd8 {[%clk 0:01:02.8]} 36. Qf2
{[%clk 0:01:03.2]} 36... a6 {[%clk 0:00:56.8]} 37. Bb6 {[%clk 0:01:02.5]} 37...
Rd3 {[%clk 0:00:55.9]} 38. Be3 {[%clk 0:00:43.3]} 38... Bc7 {[%clk 0:00:53.5]}
39. Bf1 {[%clk 0:00:42.7]} 39... Rd1 {[%clk 0:00:53.3]} 40. Rxd1 {[%clk
0:00:41.2]} 40... Qxd1 {[%clk 0:00:54.2]} 41. Qd2 {[%clk 0:00:35.3]} 41... Qg4
{[%clk 0:00:48.3]} 42. Bf2 {[%clk 0:00:32.4]} 42... Be4 {[%clk 0:00:48.5]} 43.
Qe2 {[%clk 0:00:26]} 43... Bf3 {[%clk 0:00:42.7]} 44. Qe3 {[%clk 0:00:25.6]}
44... Qh5 {[%clk 0:00:39.3]} 45. Bg2 {[%clk 0:00:24.8]} 45... Bxg2 {[%clk
0:00:35.9]} 46. Kxg2 {[%clk 0:00:25.7]} 46... Qd1 {[%clk 0:00:35.7]} 47. Qe4
{[%clk 0:00:20.8]} 47... Qd2 {[%clk 0:00:32.8]} 48. e6 {[%clk 0:00:20.8]} 48...
Bb6 {[%clk 0:00:31.1]} 49. e7 {[%clk 0:00:17.3]} 49... Qxf2+ {[%clk 0:00:27.2]}
50. Kh3 {[%clk 0:00:17.8]} 50... Qf1+ {[%clk 0:00:27]} 51. Kh4 {[%clk
0:00:17.8]} 51... Kg7 {[%clk 0:00:02.8]} 52. e8=Q {[%clk 0:00:18.7]} 52... Qg1
{[%clk 0:00:01.9]} 53. Q4e5+ {[%clk 0:00:16.9]} 53... f6 {[%clk 0:00:01.9]} 54.
Q5e7+ {[%clk 0:00:16.5]} 54... Kh6 {[%clk 0:00:02.1]} 55. Q8f8# {[%clk
0:00:16.5]} 1-0

[Event "*** Titled Tuesday Blitz"]
[Site "Chess.com"]
[Date "2020.05.26"]
[Round "9"]
[White "MiroVlasenko"]
[Black "Anna_ChessMate"]
[Result "0-1"]
[WhiteElo "2655"]
[BlackElo "2549"]
[TimeControl "180+1"]
[EndTime "11:52:47 PDT"]
[Termination "Anna_ChessMate won by resignation"]

1. e4 {[%clk 0:03:00.9]} 1... e5 {[%clk 0:02:58.2]} 2. Nc3 {[%clk 0:03:01.1]}
2... Nf6 {[%clk 0:02:55]} 3. Bc4 {[%clk 0:03:00.3]} 3... c6 {[%clk 0:02:54.1]}
4. Nf3 {[%clk 0:02:56.4]} 4... d5 {[%clk 0:02:53.7]} 5. exd5 {[%clk 0:02:56.5]}
5... cxd5 {[%clk 0:02:54.6]} 6. Bb5+ {[%clk 0:02:56.9]} 6... Bd7 {[%clk
0:02:50.8]} 7. Nxe5 {[%clk 0:02:45.3]} 7... Bxb5 {[%clk 0:02:50.7]} 8. Nxb5
{[%clk 0:02:45.4]} 8... a6 {[%clk 0:02:51.6]} 9. Nd4 {[%clk 0:02:44.9]} 9... Bc5
{[%clk 0:02:49.8]} 10. Nb3 {[%clk 0:02:34.2]} 10... Bd6 {[%clk 0:02:45.4]} 11.
d4 {[%clk 0:02:33.2]} 11... O-O {[%clk 0:02:42.8]} 12. O-O {[%clk 0:02:31.9]}
12... Re8 {[%clk 0:02:43.3]} 13. Re1 {[%clk 0:02:26.5]} 13... Ne4 {[%clk
0:02:41.4]} 14. Bf4 {[%clk 0:02:03.6]} 14... Qf6 {[%clk 0:02:35.3]} 15. Qf3
{[%clk 0:01:58.8]} 15... Nc6 {[%clk 0:02:18.8]} 16. Nxc6 {[%clk 0:01:36]} 16...
Bxf4 {[%clk 0:02:16.7]} 17. Nb4 {[%clk 0:01:35.4]} 17... Bxh2+ {[%clk
0:01:58.8]} 18. Kxh2 {[%clk 0:01:26.4]} 18... Qd6+ {[%clk 0:01:59]} 19. g3
{[%clk 0:01:24.4]} 19... Qxb4 {[%clk 0:01:58.6]} 20. c3 {[%clk 0:01:21.1]} 20...
Qd6 {[%clk 0:01:57.4]} 21. Kg2 {[%clk 0:01:20.9]} 21... Re6 {[%clk 0:01:56.8]}
22. Re2 {[%clk 0:01:13.6]} 22... Rf6 {[%clk 0:01:55.3]} 23. Qd3 {[%clk
0:01:11.4]} 23... h5 {[%clk 0:01:51.4]} 24. Nd2 {[%clk 0:01:09.6]} 24... Ng5
{[%clk 0:01:48.8]} 25. Rh1 {[%clk 0:01:04.7]} 25... g6 {[%clk 0:01:47.1]} 26.
Re5 {[%clk 0:01:01.2]} 26... Ne6 {[%clk 0:01:41.8]} 27. Nf3 {[%clk 0:00:59.7]}
27... Kg7 {[%clk 0:01:35.5]} 28. Qe3 {[%clk 0:00:56.4]} 28... b5 {[%clk
0:01:19.3]} 29. a3 {[%clk 0:00:53.1]} 29... a5 {[%clk 0:01:19.1]} 30. Ng5 {[%clk
0:00:52.3]} 30... Nc7 {[%clk 0:00:59.5]} 31. Nh3 {[%clk 0:00:45.9]} 31... b4
{[%clk 0:00:58.2]} 32. axb4 {[%clk 0:00:43.8]} 32... axb4 {[%clk 0:00:59.1]} 33.
Nf4 {[%clk 0:00:44]} 33... Kf8 {[%clk 0:00:50.9]} 34. Nd3 {[%clk 0:00:27.5]}
34... bxc3 {[%clk 0:00:50]} 35. bxc3 {[%clk 0:00:27.5]} 35... Ra2 {[%clk
0:00:48.6]} 36. Qh6+ {[%clk 0:00:24.1]} 36... Kg8 {[%clk 0:00:47.3]} 37. Nf4
{[%clk 0:00:23.7]} 37... Ne6 {[%clk 0:00:37.3]} 38. Nxd5 {[%clk 0:00:20.2]}
38... Rfxf2+ {[%clk 0:00:32.7]} 39. Kh3 {[%clk 0:00:20.5]} 39... Ng7 {[%clk
0:00:27.4]} 40. Qg5 {[%clk 0:00:19.9]} 40... Qd7+ {[%clk 0:00:23.2]} 41. g4
{[%clk 0:00:20.3]} 41... hxg4+ {[%clk 0:00:17.9]} 42. Qxg4 {[%clk 0:00:20.2]}
42... Rh2+ {[%clk 0:00:18]} 43. Rxh2 {[%clk 0:00:20]} 43... Qxg4+ {[%clk
0:00:12.1]} 44. Kxg4 {[%clk 0:00:20.2]} 44... Rxh2 {[%clk 0:00:13]} 45. Nf6+
{[%clk 0:00:20.3]} 45... Kf8 {[%clk 0:00:09.9]} 46. d5 {[%clk 0:00:20.7]} 46...
Rd2 {[%clk 0:00:07.9]} 47. c4 {[%clk 0:00:20.5]} 47... Rd4+ {[%clk 0:00:07]} 48.
Kg5 {[%clk 0:00:20.8]} 48... Rxc4 {[%clk 0:00:05.7]} 49. d6 {[%clk 0:00:21.2]}
49... Rd4 {[%clk 0:00:05.9]} 50. d7 {[%clk 0:00:21.1]} 50... Ne6+ {[%clk
0:00:06.3]} 51. Rxe6 {[%clk 0:00:21.5]} 51... fxe6 {[%clk 0:00:06.1]} 52. Kxg6
{[%clk 0:00:22]} 52... Ke7 {[%clk 0:00:06.3]} 53. Kg5 {[%clk 0:00:21.8]} 53...
Rd1 {[%clk 0:00:05.5]} 54. Ng4 {[%clk 0:00:21.6]} 54... Kxd7 {[%clk 0:00:04.8]}
55. Ne5+ {[%clk 0:00:21.9]} 55... Kd6 {[%clk 0:00:05.1]} 56. Nf7+ {[%clk
0:00:22.3]} 56... Kd5 {[%clk 0:00:05.2]} 57. Kf4 {[%clk 0:00:22.7]} 57... Rf1+
{[%clk 0:00:05.2]} 0-1

[Event "*** Titled Tuesday Blitz"]
[Site "Chess.com"]
[Date "2020.05.26"]
[Round "9"]
[White "KNVB"]
[Black "Korchmar_Vasiliy"]
[Result "0-1"]
[WhiteElo "2750"]
[BlackElo "2588"]
[TimeControl "180+1"]
[EndTime "11:52:50 PDT"]
[Termination "Korchmar_Vasiliy won by checkmate"]

1. b3 {[%clk 0:03:00.9]} 1... d5 {[%clk 0:02:59.6]} 2. Bb2 {[%clk 0:03:01.8]}
2... Bf5 {[%clk 0:02:59.6]} 3. Nf3 {[%clk 0:02:59]} 3... e6 {[%clk 0:02:59.9]}
4. e3 {[%clk 0:02:55.1]} 4... Nf6 {[%clk 0:03:00.1]} 5. Nc3 {[%clk 0:02:46.5]}
5... Be7 {[%clk 0:02:50.8]} 6. Rg1 {[%clk 0:02:34]} 6... O-O {[%clk 0:02:44.2]}
7. Nh4 {[%clk 0:01:57.5]} 7... Bg4 {[%clk 0:02:42.3]} 8. f3 {[%clk 0:01:53.6]}
8... Bh5 {[%clk 0:02:28.1]} 9. g3 {[%clk 0:01:05.4]} 9... c5 {[%clk 0:02:10.1]}
10. Ng2 {[%clk 0:00:52.4]} 10... d4 {[%clk 0:02:03.7]} 11. Nb5 {[%clk
0:00:36.7]} 11... e5 {[%clk 0:02:00.3]} 12. g4 {[%clk 0:00:33.4]} 12... Bg6
{[%clk 0:01:45.3]} 13. e4 {[%clk 0:00:33.7]} 13... Ne8 {[%clk 0:01:21.2]} 14.
Qe2 {[%clk 0:00:24.7]} 14... a6 {[%clk 0:01:18.2]} 15. Na3 {[%clk 0:00:24.9]}
15... b5 {[%clk 0:01:18.8]} 16. c4 {[%clk 0:00:25.5]} 16... b4 {[%clk
0:00:47.9]} 17. Nc2 {[%clk 0:00:18.6]} 17... Nc6 {[%clk 0:00:48.4]} 18. d3
{[%clk 0:00:17.5]} 18... a5 {[%clk 0:00:48.3]} 19. a4 {[%clk 0:00:09.9]} 19...
bxa3 {[%clk 0:00:49]} 20. Bxa3 {[%clk 0:00:09.8]} 20... Rb8 {[%clk 0:00:47.2]}
21. Rb1 {[%clk 0:00:06.8]} 21... a4 {[%clk 0:00:45.5]} 22. Kf2 {[%clk
0:00:04.3]} 22... axb3 {[%clk 0:00:34.9]} 23. Nce1 {[%clk 0:00:04.9]} 23... Qa5
{[%clk 0:00:27.2]} 24. Bb2 {[%clk 0:00:05.1]} 24... Nc7 {[%clk 0:00:20.3]} 25.
h4 {[%clk 0:00:05.1]} 25... f6 {[%clk 0:00:19.4]} 26. f4 {[%clk 0:00:04.9]}
26... exf4 {[%clk 0:00:17.6]} 27. Nxf4 {[%clk 0:00:05.8]} 27... Ne5 {[%clk
0:00:14.2]} 28. Nf3 {[%clk 0:00:03.7]} 28... Qb6 {[%clk 0:00:11.3]} 29. Bh3
{[%clk 0:00:02.8]} 29... Ra8 {[%clk 0:00:11]} 30. h5 {[%clk 0:00:02.7]} 30...
Bf7 {[%clk 0:00:10.9]} 31. Nh4 {[%clk 0:00:03.4]} 31... g6 {[%clk 0:00:07.4]}
32. Kg3 {[%clk 0:00:02.3]} 32... Ra2 {[%clk 0:00:06.8]} 33. hxg6 {[%clk
0:00:02.4]} 33... hxg6 {[%clk 0:00:06.7]} 34. Nd5 {[%clk 0:00:03]} 34... Nxd5
{[%clk 0:00:06.5]} 35. exd5 {[%clk 0:00:03.9]} 35... Bd6 {[%clk 0:00:06.7]} 36.
Kg2 {[%clk 0:00:04.3]} 36... Re8 {[%clk 0:00:07.1]} 37. Rge1 {[%clk 0:00:03.3]}
37... Nxc4 {[%clk 0:00:04.2]} 38. Qxe8+ {[%clk 0:00:02.8]} 38... Bxe8 {[%clk
0:00:05.1]} 39. Rxe8+ {[%clk 0:00:03.4]} 39... Kf7 {[%clk 0:00:05.8]} 40. Re6
{[%clk 0:00:03.6]} 40... Rxb2+ {[%clk 0:00:05.8]} 41. Rxb2 {[%clk 0:00:03.5]}
41... Nxb2 {[%clk 0:00:06.7]} 42. g5 {[%clk 0:00:03.7]} 42... fxg5 {[%clk
0:00:05.7]} 43. Nxg6 {[%clk 0:00:03.9]} 43... Qb4 {[%clk 0:00:03.3]} 44. Bf5
{[%clk 0:00:03]} 44... Qd2+ {[%clk 0:00:03.3]} 45. Kf3 {[%clk 0:00:02.9]} 45...
Qd1+ {[%clk 0:00:02.6]} 46. Kg2 {[%clk 0:00:03]} 46... Qd2+ {[%clk 0:00:02.6]}
47. Kf3 {[%clk 0:00:03.4]} 47... Qd1+ {[%clk 0:00:02.7]} 48. Kg2 {[%clk
0:00:03.5]} 48... Qc2+ {[%clk 0:00:03.6]} 49. Kf3 {[%clk 0:00:03.5]} 49... Bf4
{[%clk 0:00:04.3]} 50. Nh8+ {[%clk 0:00:03.3]} 50... Kg8 {[%clk 0:00:04]} 51.
Re8+ {[%clk 0:00:03.5]} 51... Kg7 {[%clk 0:00:04.3]} 52. d6 {[%clk 0:00:02.9]}
52... Qd1+ {[%clk 0:00:04.4]} 53. Ke4 {[%clk 0:00:03.3]} 53... Qh1# {[%clk
0:00:04.2]} 0-1